[Event "Titled Tuesday Blitz January 17 Early 2023"]
[White "Pakleza, Zbigniew"]
[Black "Predke, Alexandr"]
[WhiteFideId "1119290"]
[BlackFideId "24107581"]
[WhiteElo "2494"]
[BlackElo "2685"]
[Result "0-1"]
[Round "09"]
[TimeControl "180+2"]
[Date "2023.01.17"]
[WhiteClock "0:00:01"]
[BlackClock "0:00:18"]

1. d4 {[%clk 0:03:00]}  Nf6 {[%clk 0:02:57]} 2. Nf3 {[%clk 0:03:01]}  e6 {[%clk 0:02:57]} 3. Bf4 {[%clk 0:03:01]}  c5 {[%clk 0:02:55]} 4. c3 {[%clk 0:03:01]}  Nc6 {[%clk 0:02:53]} 5. e3 {[%clk 0:03:02]}  h6 {[%clk 0:02:53]} 6. h3 {[%clk 0:03:01]}  d5 {[%clk 0:02:53]} 7. Nbd2 {[%clk 0:03:02]}  Bd6 {[%clk 0:02:53]} 8. Ne5 {[%clk 0:03:02]}  Qc7 {[%clk 0:02:36]} 9. Nxc6 {[%clk 0:02:28]}  bxc6 {[%clk 0:02:37]} 10. Bxd6 {[%clk 0:02:26]}  Qxd6 {[%clk 0:02:38]} 11. Qa4 {[%clk 0:02:27]}  cxd4 {[%clk 0:02:25]} 12. cxd4 {[%clk 0:02:26]}  O-O {[%clk 0:02:17]} 13. Rc1 {[%clk 0:02:20]}  Bd7 {[%clk 0:02:17]} 14. Nb3 {[%clk 0:02:05]}  Rfb8 {[%clk 0:02:11]} 15. Bd3 {[%clk 0:01:54]}  e5 {[%clk 0:02:07]} 16. O-O {[%clk 0:01:48]}  exd4 {[%clk 0:02:01]} 17. Qxd4 {[%clk 0:01:49]}  Rb4 {[%clk 0:01:57]} 18. Qc5 {[%clk 0:01:43]}  Qb8 {[%clk 0:01:46]} 19. Rfd1 {[%clk 0:01:04]}  a5 {[%clk 0:01:34]} 20. Nxa5 {[%clk 0:00:53]}  Rxb2 {[%clk 0:01:30]} 21. Nxc6 {[%clk 0:00:54]}  Bxc6 {[%clk 0:01:25]} 22. Qxc6 {[%clk 0:00:54]}  Rbxa2 {[%clk 0:01:19]} 23. Rb1 {[%clk 0:00:43]}  Qe5 {[%clk 0:01:14]} 24. Rdc1 {[%clk 0:00:23]}  Rf8 {[%clk 0:00:49]} 25. Qc7 {[%clk 0:00:18]}  Qg5 {[%clk 0:00:43]} 26. Rc6 {[%clk 0:00:12]}  Qh4 {[%clk 0:00:39]} 27. Qf4 {[%clk 0:00:09]}  Qxf4 {[%clk 0:00:35]} 28. exf4 {[%clk 0:00:10]}  Rd2 {[%clk 0:00:34]} 29. Bf1 {[%clk 0:00:08]}  Ne4 {[%clk 0:00:32]} 30. f3 {[%clk 0:00:05]}  Ng3 {[%clk 0:00:33]} 31. Kh2 {[%clk 0:00:04]}  Nf5 {[%clk 0:00:31]} 32. Kg1 {[%clk 0:00:04]}  Ra8 {[%clk 0:00:27]} 33. g4 {[%clk 0:00:03]}  Ne3 {[%clk 0:00:20]} 34. Rc3 {[%clk 0:00:02]}  Nxf1 {[%clk 0:00:20]} 35. Kxf1 {[%clk 0:00:01]}  Raa2 {[%clk 0:00:20]} 36. Ke1 {[%clk 0:00:01]}  Rh2 {[%clk 0:00:19]} 37. Rc8+ {[%clk 0:00:01]}  Kh7 {[%clk 0:00:18]} 0-1


[Site "https://www.chess.com"]

[Event "Titled Tuesday Blitz January 17 Early 2023"]
[White "Kopczynski, Michal"]
[Black "Sanal, Vahap"]
[WhiteFideId "1124200"]
[BlackFideId "6300545"]
[WhiteElo "2225"]
[BlackElo "2600"]
[Result "0-1"]
[Round "09"]
[TimeControl "180+2"]
[Date "2023.01.17"]
[WhiteClock "0:00:09"]
[BlackClock "0:00:08"]

1. e4 {[%clk 0:03:00]}  c6 {[%clk 0:02:40]} 2. d4 {[%clk 0:03:01]}  d5 {[%clk 0:02:39]} 3. e5 {[%clk 0:03:01]}  Bf5 {[%clk 0:02:37]} 4. g4 {[%clk 0:03:01]}  Bc8 {[%clk 0:02:32]} 5. Bd3 {[%clk 0:03:02]}  e6 {[%clk 0:02:29]} 6. Be3 {[%clk 0:03:01]}  c5 {[%clk 0:02:28]} 7. dxc5 {[%clk 0:03:01]}  Nd7 {[%clk 0:02:26]} 8. f4 {[%clk 0:02:58]}  Bxc5 {[%clk 0:02:24]} 9. Bxc5 {[%clk 0:02:55]}  Nxc5 {[%clk 0:02:24]} 10. Nf3 {[%clk 0:02:56]}  Nxd3+ {[%clk 0:02:23]} 11. Qxd3 {[%clk 0:02:56]}  Ne7 {[%clk 0:02:20]} 12. Nc3 {[%clk 0:02:54]}  Bd7 {[%clk 0:02:16]} 13. O-O-O {[%clk 0:02:52]}  Qa5 {[%clk 0:02:09]} 14. Nd4 {[%clk 0:02:46]}  a6 {[%clk 0:01:53]} 15. f5 {[%clk 0:02:45]}  O-O-O {[%clk 0:01:50]} 16. Rhf1 {[%clk 0:02:39]}  Kb8 {[%clk 0:01:41]} 17. fxe6 {[%clk 0:02:33]}  Bxe6 {[%clk 0:01:40]} 18. Nxe6 {[%clk 0:02:32]}  fxe6 {[%clk 0:01:41]} 19. Rf7 {[%clk 0:02:30]}  Nc6 {[%clk 0:01:41]} 20. Rxg7 {[%clk 0:02:25]}  d4 {[%clk 0:01:41]} 21. Ne4 {[%clk 0:02:19]}  Qxe5 {[%clk 0:01:31]} 22. Rf7 {[%clk 0:02:13]}  Rhf8 {[%clk 0:01:16]} 23. Rdf1 {[%clk 0:02:07]}  Rxf7 {[%clk 0:01:14]} 24. Rxf7 {[%clk 0:02:08]}  Qxh2 {[%clk 0:01:06]} 25. Nc5 {[%clk 0:01:25]}  Qg1+ {[%clk 0:00:47]} 26. Kd2 {[%clk 0:01:24]}  Qg2+ {[%clk 0:00:45]} 27. Qe2 {[%clk 0:01:15]}  Qxe2+ {[%clk 0:00:39]} 28. Kxe2 {[%clk 0:01:16]}  Rd5 {[%clk 0:00:40]} 29. Nd7+ {[%clk 0:00:57]}  Ka7 {[%clk 0:00:37]} 30. Rxh7 {[%clk 0:00:57]}  Rb5 {[%clk 0:00:32]} 31. b3 {[%clk 0:00:51]}  Nb4 {[%clk 0:00:31]} 32. a4 {[%clk 0:00:39]}  Rg5 {[%clk 0:00:29]} 33. Nf6 {[%clk 0:00:29]}  Nxc2 {[%clk 0:00:27]} 34. Kd3 {[%clk 0:00:29]}  Ne3 {[%clk 0:00:22]} 35. Kxd4 {[%clk 0:00:26]}  Nxg4 {[%clk 0:00:22]} 36. Ne4 {[%clk 0:00:22]}  Rd5+ {[%clk 0:00:23]} 37. Kc3 {[%clk 0:00:20]}  Ne5 {[%clk 0:00:23]} 38. b4 {[%clk 0:00:18]}  Rd3+ {[%clk 0:00:19]} 39. Kc2 {[%clk 0:00:18]}  Rd4 {[%clk 0:00:18]} 40. Nc5 {[%clk 0:00:15]}  Rxb4 {[%clk 0:00:19]} 41. Nxe6 {[%clk 0:00:15]}  Rxa4 {[%clk 0:00:17]} 42. Rxb7+ {[%clk 0:00:15]}  Ka8 {[%clk 0:00:15]} 43. Rg7 {[%clk 0:00:14]}  Rc4+ {[%clk 0:00:15]} 44. Kb3 {[%clk 0:00:14]}  Rc6 {[%clk 0:00:15]} 45. Nd4 {[%clk 0:00:13]}  Rd6 {[%clk 0:00:14]} 46. Kc3 {[%clk 0:00:12]}  Nd7 {[%clk 0:00:13]} 47. Nb3 {[%clk 0:00:11]}  Kb8 {[%clk 0:00:11]} 48. Kb4 {[%clk 0:00:10]}  Rb6+ {[%clk 0:00:11]} 49. Ka4 {[%clk 0:00:09]}  Kc8 {[%clk 0:00:10]} 50. Rg8+ {[%clk 0:00:09]}  Kc7 {[%clk 0:00:10]} 51. Rg7 {[%clk 0:00:09]}  Rc6 {[%clk 0:00:11]} 52. Kb4 {[%clk 0:00:07]}  Kd8 {[%clk 0:00:08]} 53. Na5 {[%clk 0:00:06]}  Rb6+ {[%clk 0:00:08]} 54. Ka4 {[%clk 0:00:07]}  Nc5+ {[%clk 0:00:08]} 55. Ka3 {[%clk 0:00:07]}  Rb1 {[%clk 0:00:05]} 56. Nc4 {[%clk 0:00:07]}  Rb3+ {[%clk 0:00:04]} 57. Ka2 {[%clk 0:00:07]}  Rb4 {[%clk 0:00:05]} 58. Ne5 {[%clk 0:00:07]}  Kc8 {[%clk 0:00:05]} 59. Nc6 {[%clk 0:00:07]}  Rb6 {[%clk 0:00:06]} 60. Ne7+ {[%clk 0:00:06]}  Kb8 {[%clk 0:00:06]} 61. Nc6+ {[%clk 0:00:07]}  Rxc6 {[%clk 0:00:06]} 62. Ka3 {[%clk 0:00:07]}  Rb6 {[%clk 0:00:06]} 63. Ka2 {[%clk 0:00:06]}  Nb7 {[%clk 0:00:07]} 64. Ka3 {[%clk 0:00:06]}  Ka7 {[%clk 0:00:07]} 65. Ka4 {[%clk 0:00:07]}  a5 {[%clk 0:00:07]} 66. Ka3 {[%clk 0:00:07]}  Ka6 {[%clk 0:00:08]} 67. Ka4 {[%clk 0:00:07]}  Nc5+ {[%clk 0:00:08]} 68. Ka3 {[%clk 0:00:08]}  Rb3+ {[%clk 0:00:09]} 69. Ka2 {[%clk 0:00:09]}  a4 {[%clk 0:00:09]} 70. Rg5 {[%clk 0:00:08]}  Kb5 {[%clk 0:00:08]} 71. Ka1 {[%clk 0:00:08]}  Rc3 {[%clk 0:00:07]} 72. Ka2 {[%clk 0:00:08]}  Kb4 {[%clk 0:00:07]} 73. Ka1 {[%clk 0:00:08]}  Nb3+ {[%clk 0:00:07]} 74. Kb2 {[%clk 0:00:08]}  a3+ {[%clk 0:00:07]} 75. Ka2 {[%clk 0:00:09]}  Rc2+ {[%clk 0:00:07]} 76. Kb1 {[%clk 0:00:09]}  Rb2# {[%clk 0:00:08]} 0-1


[Site "https://www.chess.com"]

[Event "Titled Tuesday Blitz January 17 Early 2023"]
[White "Riehle, Marco"]
[Black "Xu, Yi"]
[WhiteFideId "12904392"]
[BlackFideId "8605564"]
[WhiteElo "2368"]
[BlackElo "2527"]
[Result "1/2-1/2"]
[Round "09"]
[TimeControl "180+2"]
[Date "2023.01.17"]
[WhiteClock "0:02:01"]
[BlackClock "0:00:20"]

1. e4 {[%clk 0:02:55]}  c5 {[%clk 0:02:56]} 2. a3 {[%clk 0:02:54]}  e6 {[%clk 0:02:47]} 3. b4 {[%clk 0:02:50]}  cxb4 {[%clk 0:02:47]} 4. axb4 {[%clk 0:02:51]}  Bxb4 {[%clk 0:02:47]} 5. Bb2 {[%clk 0:02:50]}  Nf6 {[%clk 0:02:43]} 6. e5 {[%clk 0:02:50]}  Nd5 {[%clk 0:02:43]} 7. c4 {[%clk 0:02:51]}  Ne7 {[%clk 0:02:38]} 8. Qg4 {[%clk 0:02:49]}  Ng6 {[%clk 0:02:27]} 9. Nf3 {[%clk 0:02:48]}  Nc6 {[%clk 0:02:24]} 10. Nc3 {[%clk 0:02:42]}  f5 {[%clk 0:01:38]} 11. exf6 {[%clk 0:02:39]}  Qxf6 {[%clk 0:01:38]} 12. O-O-O {[%clk 0:02:13]}  Bxc3 {[%clk 0:01:05]} 13. Bxc3 {[%clk 0:02:12]}  Qe7 {[%clk 0:01:05]} 14. Bd3 {[%clk 0:02:03]}  Qa3+ {[%clk 0:01:05]} 15. Kb1 {[%clk 0:02:02]}  Qb3+ {[%clk 0:00:57]} 16. Kc1 {[%clk 0:02:02]}  Qa3+ {[%clk 0:00:52]} 17. Kb1 {[%clk 0:02:02]}  Qb3+ {[%clk 0:00:25]} 18. Kc1 {[%clk 0:02:01]}  Qa3+ {[%clk 0:00:20]} 1/2-1/2


[Site "https://www.chess.com"]

[Event "Titled Tuesday Blitz January 17 Early 2023"]
[White "Grandelius, Nils"]
[Black "Salimova, Nurgyul"]
[WhiteFideId "1710400"]
[BlackFideId "2915138"]
[WhiteElo "2664"]
[BlackElo "2391"]
[Result "1-0"]
[Round "09"]
[TimeControl "180+2"]
[Date "2023.01.17"]
[WhiteClock "0:00:14"]
[BlackClock "0:00:03"]

1. e4 {[%clk 0:03:00]}  Nf6 {[%clk 0:02:58]} 2. e5 {[%clk 0:03:00]}  Nd5 {[%clk 0:02:57]} 3. d4 {[%clk 0:03:01]}  d6 {[%clk 0:02:55]} 4. Nf3 {[%clk 0:03:01]}  Bg4 {[%clk 0:02:54]} 5. Be2 {[%clk 0:02:57]}  e6 {[%clk 0:02:46]} 6. O-O {[%clk 0:02:52]}  Be7 {[%clk 0:02:46]} 7. c4 {[%clk 0:02:50]}  Nb6 {[%clk 0:02:46]} 8. exd6 {[%clk 0:02:49]}  cxd6 {[%clk 0:02:44]} 9. Be3 {[%clk 0:02:49]}  O-O {[%clk 0:02:42]} 10. Nc3 {[%clk 0:02:42]}  Nc6 {[%clk 0:02:39]} 11. d5 {[%clk 0:02:40]}  exd5 {[%clk 0:02:39]} 12. Nxd5 {[%clk 0:02:39]}  Nxd5 {[%clk 0:02:34]} 13. Qxd5 {[%clk 0:02:40]}  Bf6 {[%clk 0:02:31]} 14. Qd2 {[%clk 0:02:31]}  Re8 {[%clk 0:02:28]} 15. Rad1 {[%clk 0:02:29]}  a5 {[%clk 0:02:12]} 16. b3 {[%clk 0:02:27]}  Be7 {[%clk 0:01:55]} 17. h3 {[%clk 0:02:21]}  Bh5 {[%clk 0:01:53]} 18. Nd4 {[%clk 0:02:16]}  Bxe2 {[%clk 0:01:50]} 19. Nxe2 {[%clk 0:02:16]}  a4 {[%clk 0:01:50]} 20. b4 {[%clk 0:02:12]}  Ne5 {[%clk 0:01:47]} 21. Qd5 {[%clk 0:02:11]}  Qc7 {[%clk 0:01:43]} 22. Rd4 {[%clk 0:01:58]}  Nc6 {[%clk 0:01:36]} 23. Rg4 {[%clk 0:01:39]}  Nxb4 {[%clk 0:01:16]} 24. Qd4 {[%clk 0:01:38]}  Bf8 {[%clk 0:01:15]} 25. Qd2 {[%clk 0:01:23]}  Nc6 {[%clk 0:01:13]} 26. Nc3 {[%clk 0:01:23]}  Ne5 {[%clk 0:01:09]} 27. Nd5 {[%clk 0:01:24]}  Qd8 {[%clk 0:01:08]} 28. Bb6 {[%clk 0:01:20]}  Qc8 {[%clk 0:01:06]} 29. Nf6+ {[%clk 0:01:14]}  Kh8 {[%clk 0:01:06]} 30. Nxe8 {[%clk 0:01:15]}  Qxe8 {[%clk 0:00:56]} 31. Rf4 {[%clk 0:01:04]}  Rc8 {[%clk 0:00:50]} 32. Qd5 {[%clk 0:00:59]}  Kg8 {[%clk 0:00:38]} 33. Rb1 {[%clk 0:00:54]}  Rc6 {[%clk 0:00:27]} 34. Bd4 {[%clk 0:00:50]}  Ng6 {[%clk 0:00:19]} 35. Re4 {[%clk 0:00:46]}  Qd7 {[%clk 0:00:17]} 36. Qb5 {[%clk 0:00:39]}  d5 {[%clk 0:00:14]} 37. Qxd5 {[%clk 0:00:34]}  Rd6 {[%clk 0:00:13]} 38. Qxb7 {[%clk 0:00:25]}  Rxd4 {[%clk 0:00:12]} 39. Qxd7 {[%clk 0:00:26]}  Rxd7 {[%clk 0:00:12]} 40. Rb8 {[%clk 0:00:26]}  f6 {[%clk 0:00:11]} 41. c5 {[%clk 0:00:20]}  Rc7 {[%clk 0:00:10]} 42. Rc4 {[%clk 0:00:17]}  Ne5 {[%clk 0:00:10]} 43. Rc2 {[%clk 0:00:17]}  Kf7 {[%clk 0:00:08]} 44. Ra8 {[%clk 0:00:14]}  Rxc5 {[%clk 0:00:03]} 45. Rxf8+ {[%clk 0:00:14]} 1-0


[Site "https://www.chess.com"]

[Event "Titled Tuesday Blitz January 17 Early 2023"]
[White "Galchenko, Matvey"]
[Black "Dourerassou, Jonathan"]
[WhiteFideId "24175480"]
[BlackFideId "628050"]
[WhiteElo "2438"]
[BlackElo "2414"]
[Result "0-1"]
[Round "09"]
[TimeControl "180+2"]
[Date "2023.01.17"]
[WhiteClock "0:00:08"]
[BlackClock "0:01:40"]

1. f4 {[%clk 0:03:00]}  d6 {[%clk 0:02:57]} 2. Nf3 {[%clk 0:03:01]}  g6 {[%clk 0:02:58]} 3. g3 {[%clk 0:03:01]}  Bg7 {[%clk 0:02:59]} 4. Bg2 {[%clk 0:03:01]}  Nf6 {[%clk 0:03:00]} 5. O-O {[%clk 0:03:02]}  O-O {[%clk 0:03:01]} 6. d3 {[%clk 0:03:03]}  c5 {[%clk 0:03:01]} 7. Nc3 {[%clk 0:03:04]}  Nc6 {[%clk 0:03:02]} 8. e4 {[%clk 0:03:04]}  a6 {[%clk 0:03:03]} 9. a4 {[%clk 0:03:04]}  Rb8 {[%clk 0:03:03]} 10. h3 {[%clk 0:03:04]}  Bd7 {[%clk 0:03:03]} 11. g4 {[%clk 0:03:05]}  b5 {[%clk 0:03:04]} 12. axb5 {[%clk 0:03:06]}  axb5 {[%clk 0:03:04]} 13. Ne2 {[%clk 0:03:06]}  b4 {[%clk 0:03:03]} 14. Ng3 {[%clk 0:03:06]}  Qb6 {[%clk 0:03:03]} 15. g5 {[%clk 0:02:33]}  Ne8 {[%clk 0:03:01]} 16. Kh2 {[%clk 0:02:32]}  Nc7 {[%clk 0:02:59]} 17. h4 {[%clk 0:02:31]}  Bg4 {[%clk 0:02:58]} 18. Qe1 {[%clk 0:02:03]}  Bxf3 {[%clk 0:02:58]} 19. Rxf3 {[%clk 0:02:04]}  Nd4 {[%clk 0:02:58]} 20. Rf2 {[%clk 0:02:04]}  b3 {[%clk 0:02:57]} 21. c3 {[%clk 0:01:36]}  Nc2 {[%clk 0:02:55]} 22. Rxc2 {[%clk 0:01:37]}  bxc2 {[%clk 0:02:55]} 23. Qd2 {[%clk 0:01:36]}  Ra8 {[%clk 0:02:50]} 24. Rxa8 {[%clk 0:01:35]}  Rxa8 {[%clk 0:02:50]} 25. Qxc2 {[%clk 0:01:35]}  Ra1 {[%clk 0:02:50]} 26. h5 {[%clk 0:01:32]}  Qb5 {[%clk 0:02:48]} 27. e5 {[%clk 0:01:21]}  dxe5 {[%clk 0:02:41]} 28. f5 {[%clk 0:01:21]}  Qa4 {[%clk 0:02:37]} 29. Qxa4 {[%clk 0:01:17]}  Rxa4 {[%clk 0:02:38]} 30. Be4 {[%clk 0:01:15]}  gxf5 {[%clk 0:02:31]} 31. Nxf5 {[%clk 0:01:14]}  Bf8 {[%clk 0:02:31]} 32. Ne3 {[%clk 0:01:06]}  Ra1 {[%clk 0:02:28]} 33. Bd2 {[%clk 0:01:06]}  e6 {[%clk 0:02:23]} 34. Nc4 {[%clk 0:01:04]}  Rd1 {[%clk 0:02:17]} 35. Kg2 {[%clk 0:00:57]}  Nd5 {[%clk 0:02:16]} 36. Kf2 {[%clk 0:00:55]}  Be7 {[%clk 0:02:06]} 37. Bf3 {[%clk 0:00:53]}  Rb1 {[%clk 0:02:03]} 38. Kg3 {[%clk 0:00:41]}  Bd8 {[%clk 0:01:56]} 39. Be4 {[%clk 0:00:39]}  Bc7 {[%clk 0:01:56]} 40. Kf3 {[%clk 0:00:35]}  Rh1 {[%clk 0:01:53]} 41. Kg4 {[%clk 0:00:33]}  Rg1+ {[%clk 0:01:52]} 42. Kf3 {[%clk 0:00:34]}  Nf4 {[%clk 0:01:50]} 43. Be3 {[%clk 0:00:30]}  Rxg5 {[%clk 0:01:47]} 44. Bxc5 {[%clk 0:00:30]}  Rxh5 {[%clk 0:01:47]} 45. b4 {[%clk 0:00:09]}  f5 {[%clk 0:01:46]} 46. Bc6 {[%clk 0:00:10]}  Rh3+ {[%clk 0:01:43]} 47. Kf2 {[%clk 0:00:07]}  Nxd3+ {[%clk 0:01:43]} 48. Kg2 {[%clk 0:00:08]}  Nf4+ {[%clk 0:01:43]} 49. Kf1 {[%clk 0:00:08]}  Rxc3 {[%clk 0:01:43]} 50. Nd2 {[%clk 0:00:07]}  Rc1+ {[%clk 0:01:39]} 51. Kf2 {[%clk 0:00:06]}  Nd3+ {[%clk 0:01:40]} 52. Ke2 {[%clk 0:00:07]}  Nxc5 {[%clk 0:01:40]} 53. bxc5 {[%clk 0:00:08]}  Rxc5 {[%clk 0:01:40]} 0-1


[Site "https://www.chess.com"]

[Event "Titled Tuesday Blitz January 17 Early 2023"]
[White "Csonka, Balazs"]
[Black "Maximov, Dmitry"]
[WhiteFideId "742910"]
[BlackFideId "14105659"]
[WhiteElo "2496"]
[BlackElo "2497"]
[Result "1-0"]
[Round "09"]
[TimeControl "180+2"]
[Date "2023.01.17"]
[WhiteClock "0:00:14"]
[BlackClock "0:00:09"]

1. e4 {[%clk 0:03:00]}  c5 {[%clk 0:02:59]} 2. Nf3 {[%clk 0:02:59]}  d6 {[%clk 0:02:59]} 3. d4 {[%clk 0:02:51]}  cxd4 {[%clk 0:03:00]} 4. Nxd4 {[%clk 0:02:52]}  Nf6 {[%clk 0:03:00]} 5. Nc3 {[%clk 0:02:53]}  a6 {[%clk 0:03:01]} 6. Be3 {[%clk 0:02:40]}  Nbd7 {[%clk 0:02:49]} 7. g4 {[%clk 0:02:38]}  Nb6 {[%clk 0:02:39]} 8. Rg1 {[%clk 0:02:30]}  g6 {[%clk 0:02:27]} 9. g5 {[%clk 0:02:23]}  Nfd7 {[%clk 0:02:25]} 10. h4 {[%clk 0:02:23]}  Bg7 {[%clk 0:02:21]} 11. h5 {[%clk 0:02:19]}  O-O {[%clk 0:02:05]} 12. hxg6 {[%clk 0:01:54]}  hxg6 {[%clk 0:02:05]} 13. Qg4 {[%clk 0:01:30]}  Re8 {[%clk 0:01:44]} 14. O-O-O {[%clk 0:01:18]}  Nf8 {[%clk 0:01:29]} 15. Qh4 {[%clk 0:01:17]}  Bd7 {[%clk 0:01:21]} 16. Bd3 {[%clk 0:01:03]}  Rc8 {[%clk 0:01:19]} 17. Nf5 {[%clk 0:00:43]}  Bxf5 {[%clk 0:00:58]} 18. exf5 {[%clk 0:00:44]}  Rxc3 {[%clk 0:00:53]} 19. bxc3 {[%clk 0:00:45]}  Nd5 {[%clk 0:00:14]} 20. Bd4 {[%clk 0:00:44]}  e5 {[%clk 0:00:13]} 21. fxe6 {[%clk 0:00:32]}  Nxe6 {[%clk 0:00:14]} 22. Bxg7 {[%clk 0:00:23]}  Nxg7 {[%clk 0:00:14]} 23. Rh1 {[%clk 0:00:21]}  Nh5 {[%clk 0:00:13]} 24. Bxg6 {[%clk 0:00:21]}  fxg6 {[%clk 0:00:14]} 25. Rxd5 {[%clk 0:00:21]}  Qc7 {[%clk 0:00:13]} 26. Rd3 {[%clk 0:00:19]}  Qc6 {[%clk 0:00:12]} 27. Rhd1 {[%clk 0:00:18]}  Re6 {[%clk 0:00:11]} 28. Qg4 {[%clk 0:00:16]}  Re7 {[%clk 0:00:10]} 29. Rxd6 {[%clk 0:00:15]}  Qxc3 {[%clk 0:00:10]} 30. Rxg6+ {[%clk 0:00:15]}  Ng7 {[%clk 0:00:09]} 31. Rd8+ {[%clk 0:00:14]}  Kf7 {[%clk 0:00:09]} 32. Rf6+ {[%clk 0:00:15]}  Qxf6 {[%clk 0:00:09]} 33. gxf6 {[%clk 0:00:16]}  Kxf6 {[%clk 0:00:09]} 34. Qf4+ {[%clk 0:00:15]}  Ke6 {[%clk 0:00:09]} 35. Rd6# {[%clk 0:00:14]} 1-0


[Site "https://www.chess.com"]

[Event "Titled Tuesday Blitz January 17 Early 2023"]
[White "Flores Quillas, Diego Saul Rodri"]
[Black "Tsaruk, Maksim"]
[WhiteFideId "3822508"]
[BlackFideId "13511173"]
[WhiteElo "2359"]
[BlackElo "2373"]
[Result "1-0"]
[Round "09"]
[TimeControl "180+2"]
[Date "2023.01.17"]
[WhiteClock "0:00:15"]
[BlackClock "0:00:15"]

1. e4 {[%clk 0:03:00]}  c6 {[%clk 0:02:56]} 2. d4 {[%clk 0:02:57]}  d5 {[%clk 0:02:56]} 3. Nc3 {[%clk 0:02:56]}  dxe4 {[%clk 0:02:57]} 4. Nxe4 {[%clk 0:02:52]}  Nf6 {[%clk 0:02:57]} 5. Nxf6+ {[%clk 0:02:52]}  exf6 {[%clk 0:02:58]} 6. c3 {[%clk 0:02:52]}  Bd6 {[%clk 0:02:59]} 7. Bd3 {[%clk 0:02:52]}  O-O {[%clk 0:02:59]} 8. Qc2 {[%clk 0:02:53]}  Re8+ {[%clk 0:02:59]} 9. Ne2 {[%clk 0:02:53]}  h5 {[%clk 0:02:59]} 10. O-O {[%clk 0:02:53]}  h4 {[%clk 0:03:00]} 11. Nf4 {[%clk 0:02:53]}  Nd7 {[%clk 0:02:58]} 12. Qd1 {[%clk 0:02:53]}  Nf8 {[%clk 0:02:57]} 13. Qh5 {[%clk 0:02:53]}  f5 {[%clk 0:02:27]} 14. Bd2 {[%clk 0:01:52]}  g6 {[%clk 0:02:26]} 15. Qh6 {[%clk 0:01:50]}  Qf6 {[%clk 0:01:59]} 16. Rae1 {[%clk 0:01:34]}  Bd7 {[%clk 0:01:56]} 17. c4 {[%clk 0:01:01]}  Bxf4 {[%clk 0:01:46]} 18. Qxf4 {[%clk 0:01:01]}  Ne6 {[%clk 0:01:46]} 19. Qh6 {[%clk 0:00:58]}  Nxd4 {[%clk 0:01:29]} 20. Bg5 {[%clk 0:00:56]}  Qd6 {[%clk 0:01:17]} 21. Qxh4 {[%clk 0:00:54]}  Ne6 {[%clk 0:00:46]} 22. Bf6 {[%clk 0:00:34]}  Ng7 {[%clk 0:00:46]} 23. c5 {[%clk 0:00:32]}  Qxc5 {[%clk 0:00:44]} 24. Qh6 {[%clk 0:00:25]}  Qf8 {[%clk 0:00:44]} 25. Bc4 {[%clk 0:00:25]}  b5 {[%clk 0:00:40]} 26. Bb3 {[%clk 0:00:25]}  a5 {[%clk 0:00:35]} 27. a3 {[%clk 0:00:24]}  a4 {[%clk 0:00:21]} 28. Ba2 {[%clk 0:00:24]}  Be6 {[%clk 0:00:07]} 29. Bxe6 {[%clk 0:00:24]}  Rxe6 {[%clk 0:00:08]} 30. Rxe6 {[%clk 0:00:24]}  fxe6 {[%clk 0:00:07]} 31. Qxg6 {[%clk 0:00:24]}  Qf7 {[%clk 0:00:08]} 32. Qh6 {[%clk 0:00:23]}  Rf8 {[%clk 0:00:05]} 33. Be5 {[%clk 0:00:21]}  Rd8 {[%clk 0:00:04]} 34. f4 {[%clk 0:00:17]}  Rd7 {[%clk 0:00:03]} 35. Rc1 {[%clk 0:00:14]}  Qe8 {[%clk 0:00:03]} 36. Rc3 {[%clk 0:00:12]}  Rf7 {[%clk 0:00:02]} 37. Rg3 {[%clk 0:00:11]}  Qd7 {[%clk 0:00:03]} 38. h4 {[%clk 0:00:12]}  Kf8 {[%clk 0:00:01]} 39. Qg6 {[%clk 0:00:11]}  Kg8 {[%clk 0:00:01]} 40. Kh2 {[%clk 0:00:11]}  Kf8 {[%clk 0:00:01]} 41. h5 {[%clk 0:00:11]}  Nxh5 {[%clk 0:00:01]} 42. Qxh5 {[%clk 0:00:10]}  Rh7 {[%clk 0:00:02]} 43. Qxh7 {[%clk 0:00:08]}  Qxh7+ {[%clk 0:00:01]} 44. Rh3 {[%clk 0:00:09]}  Qd7 {[%clk 0:00:02]} 45. Rh8+ {[%clk 0:00:10]}  Kf7 {[%clk 0:00:02]} 46. Rh7+ {[%clk 0:00:10]}  Ke8 {[%clk 0:00:03]} 47. Rxd7 {[%clk 0:00:11]}  Kxd7 {[%clk 0:00:04]} 48. Kg3 {[%clk 0:00:12]}  c5 {[%clk 0:00:04]} 49. Kf3 {[%clk 0:00:12]}  Kc6 {[%clk 0:00:05]} 50. Ke3 {[%clk 0:00:13]}  Kd5 {[%clk 0:00:06]} 51. Kd3 {[%clk 0:00:14]}  b4 {[%clk 0:00:06]} 52. Bf6 {[%clk 0:00:13]}  c4+ {[%clk 0:00:06]} 53. Kc2 {[%clk 0:00:11]}  bxa3 {[%clk 0:00:03]} 54. bxa3 {[%clk 0:00:11]}  Ke4 {[%clk 0:00:03]} 55. Be5 {[%clk 0:00:11]}  Ke3 {[%clk 0:00:04]} 56. Kc3 {[%clk 0:00:11]}  Kf2 {[%clk 0:00:04]} 57. Kxc4 {[%clk 0:00:12]}  Kxg2 {[%clk 0:00:05]} 58. Kb4 {[%clk 0:00:12]}  Kf3 {[%clk 0:00:06]} 59. Kxa4 {[%clk 0:00:13]}  Ke4 {[%clk 0:00:07]} 60. Kb5 {[%clk 0:00:14]}  Kd5 {[%clk 0:00:07]} 61. a4 {[%clk 0:00:15]}  Ke4 {[%clk 0:00:08]} 62. a5 {[%clk 0:00:16]}  Kd5 {[%clk 0:00:09]} 63. a6 {[%clk 0:00:16]}  Ke4 {[%clk 0:00:10]} 64. a7 {[%clk 0:00:17]}  Kd3 {[%clk 0:00:11]} 65. a8=Q {[%clk 0:00:17]}  Kc2 {[%clk 0:00:11]} 66. Qc6+ {[%clk 0:00:17]}  Kb3 {[%clk 0:00:12]} 67. Qf3+ {[%clk 0:00:18]}  Ka2 {[%clk 0:00:12]} 68. Kc4 {[%clk 0:00:17]}  Kb1 {[%clk 0:00:13]} 69. Qg2 {[%clk 0:00:15]}  Kc1 {[%clk 0:00:14]} 70. Kc3 {[%clk 0:00:15]}  Kd1 {[%clk 0:00:15]} 71. Qd2# {[%clk 0:00:15]} 1-0


[Site "https://www.chess.com"]